fUSD/lending_fUSD_20250127
["ID","MTS","AMOUNT","RATE_DAILY","PERIOD"]
[350577481,1737969052376,-212.08,0.00011878,2]
[350577482,1737969052385,-500.0,0.00011878,2]
[350577483,1737969052394,-612.45,0.00011878,2]
[350577484,1737969052404,-500.0,0.00011878,2]
[350577485,1737969052413,-500.0,0.00011878,2]
[350577486,1737969052423,-238.42579316,0.00011878,2]
[350577487,1737969052432,-500.0,0.00011878,2]
[350577488,1737969052441,-500.0,0.00011878,2]
[350577489,1737969052450,-500.0,0.00011878,2]
[350577490,1737969052459,-500.0,0.00011878,2]
[350577491,1737969052468,-1.28868134,0.00011878,2]
[350577492,1737969052480,-498.71131866,0.00011878,2]
[350577493,1737969052488,-500.0,0.00011878,2]
[350577494,1737969052497,-500.0,0.00011878,2]
[350577495,1737969052507,-500.0,0.00011878,2]
[350577496,1737969052516,-438.78750195,0.00011878,2]
[350577497,1737969052597,-61.21249805,0.00011878,2]
[350577498,1737969052607,-500.0,0.00011878,2]
[350577499,1737969052616,-182.13981355,0.00011878,2]
[350577500,1737969052643,-337.122019,0.00011644,2]
[350577501,1737969052652,-317.86018645,0.00011878,2]
[350577502,1737969052661,-500.0,0.00011878,2]
[350577503,1737969052670,-500.0,0.00011878,2]
[350577504,1737969052679,-252.02521955,0.00011878,2]
[350577505,1737969052690,-247.97478045,0.00011878,2]
[350577506,1737969052699,-500.0,0.00011878,2]
[350577507,1737969052708,-500.0,0.00011878,2]
[350577508,1737969052718,-500.0,0.00011878,2]
[350577509,1737969052727,-500.0,0.00011878,2]
[350577510,1737969052736,-103.65669151,0.00011878,2]
[350577512,1737969303134,150.0,0.0001801,100]
[350577514,1737969603115,150.0,0.0001801,100]
[350577516,1737969693354,300.33,0.00022,120]
[350577521,1737969882301,927.88,8.334e-05,2]
[350577870,1737970153054,426.93,9.9e-05,7]
[350577905,1737970231510,-163.8258941,9.94e-05,2]
[350577906,1737970231520,-193.8542409,9.973e-05,2]
[350577907,1737970231671,-306.1457591,9.973e-05,2]
[350577908,1737970231680,-562.41917933,9.999e-05,2]
[350577909,1737970231689,-136.44468048,9.999e-05,2]
[350577910,1737970231787,-13.55531952,9.999e-05,2]
[350577911,1737970231797,-203.12937956,9.999e-05,2]
[350577912,1737970231806,-240.92660429,9.999e-05,2]
[350577913,1737970231816,-1107.90469978,0.0001,2]
[350577914,1737970231838,-4457.01206308,0.0001,2]
[350577975,1737970237493,-6262.1637343,0.0001,2]
[350577976,1737970237555,-15838.17875957,0.0001,2]
[350577977,1737970237608,-632.57494815,0.0001,2]
[350577978,1737970237771,-3302.77504967,0.0001,2]
[350577979,1737970237827,-1730.02566665,0.0001,2]
[350577980,1737970237884,-29751.22656977,0.0001,2]
[350577981,1737970237895,-1622779.61121567,0.0001,2]
[350577982,1737970237904,-216.08771587,0.0001,2]
[350577983,1737970237914,-326.02,0.00010034,2]
[350577984,1737970237923,-1000.0,0.0001004,2]
[350577985,1737970237933,-14855.94555002,0.0001004,2]
[350577986,1737970237942,-250.0,0.00010053,2]
[350577987,1737970237952,-250.0,0.00010057,2]
[350577988,1737970237962,-807.71,0.00010111,2]
[350577989,1737970237971,-197.09,0.00010118,2]
[350577990,1737970237981,-191.97,0.00010137,2]
[350577991,1737970237991,-1905.74,0.00010149,2]
[350577993,1737970238000,-417.94,0.00010185,2]
[350577995,1737970238009,-3731.87,0.00010244,2]
[350577996,1737970238018,-217.53,0.00010252,2]
[350577997,1737970238027,-152.12,0.00010492,2]
[350577998,1737970238036,-152.12,0.00010499,2]
[350577999,1737970238046,-255.55177213,0.000105,2]
[350578000,1737970238055,-152.12,0.00010507,2]
[350578001,1737970238064,-152.12,0.00010514,2]
[350578002,1737970238073,-1000.0,0.00010521,2]
[350578003,1737970238082,-152.12,0.00010522,2]
[350578004,1737970238092,-152.12,0.00010529,2]
[350578005,1737970238101,-152.12,0.00010537,2]
[350578006,1737970238110,-152.12,0.00010544,2]
[350578007,1737970238120,-927.88,0.00010598,2]
[350578008,1737970238129,-661.59663975,0.00010742,2]
[350578009,1737970238138,-48470.74953909,0.000108,2]
[350578010,1737970238148,-251.47,0.00010842,2]
[350578011,1737970238157,-250.51,0.00010858,2]
[350578012,1737970238166,-254.51,0.00010858,2]
[350578013,1737970238176,-248.08,0.00010858,2]
[350578014,1737970238185,-249.12,0.00010925,2]
[350578015,1737970238194,-246.03,0.00010928,2]
[350578016,1737970238203,-245.56,0.00010934,2]
[350578017,1737970238213,-253.93,0.00010946,2]
[350578018,1737970238223,-500.0,0.00010958,2]
[350578019,1737970238235,-500.0,0.00010958,2]
[350578020,1737970238244,-500.0,0.00010958,2]
[350578021,1737970238253,-501.40149947,0.00010958,2]
[350578022,1737970238263,-500.0,0.00010958,2]
[350578023,1737970238272,-300.0,0.00010958,2]
[350578024,1737970238281,-500.0,0.00010958,2]
[350578025,1737970238291,-500.0,0.00010958,2]
[350578026,1737970238300,-500.0,0.00010958,2]
[350578027,1737970238310,-500.0,0.00010958,2]
[350578028,1737970238319,-500.0,0.00010958,2]
[350578029,1737970238328,-500.0,0.00010958,2]
[350578030,1737970238337,-500.0,0.00010958,2]
[350578031,1737970238348,-500.0,0.00010958,2]
[350578032,1737970238358,-500.0,0.00010958,2]
[350578033,1737970238367,-500.0,0.00010958,2]
[350578034,1737970238376,-500.0,0.00010958,2]
[350578035,1737970238385,-500.0,0.00010958,2]
[350578036,1737970238394,-220.66112146,0.00010958,2]
[350578037,1737970238404,-500.0,0.00010958,2]
[350578038,1737970238413,-500.0,0.00010958,2]
[350578039,1737970238423,-500.0,0.00010958,2]
[350578040,1737970238432,-500.0,0.00010958,2]
[350578041,1737970238441,-500.0,0.00010958,2]
[350578042,1737970238450,-500.0,0.00010958,2]
[350578043,1737970238460,-500.0,0.00010958,2]
[350578044,1737970238469,-551.17533945,0.00010958,2]
[350578045,1737970238478,-500.0,0.00010958,2]
[350578046,1737970238487,-500.0,0.00010958,2]
[350578047,1737970238497,-500.0,0.00010958,2]
[350578048,1737970238506,-500.0,0.00010958,2]
[350578049,1737970238515,-500.0,0.00010958,2]
[350578050,1737970238524,-500.0,0.00010958,2]
[350578051,1737970238533,-500.0,0.00010958,2]
[350578052,1737970238542,-500.0,0.00010958,2]
[350578053,1737970238552,-500.0,0.00010958,2]
[350578054,1737970238561,-500.0,0.00010958,2]
[350578055,1737970238570,-569.26122783,0.00010958,2]
[350578056,1737970238579,-500.0,0.00010958,2]
[350578057,1737970238588,-500.0,0.00010958,2]
[350578058,1737970238598,-502.85328189,0.00010958,2]
[350578059,1737970238607,-508.69190066,0.00010958,2]
[350578060,1737970238617,-500.0,0.00010958,2]
[350578061,1737970238626,-509.87219398,0.00010958,2]
[350578062,1737970238635,-500.0,0.00010958,2]
[350578063,1737970238645,-500.0,0.00010958,2]
[350578064,1737970238654,-641.54373215,0.00010958,2]
[350578065,1737970238663,-511.19374232,0.00010958,2]
[350578066,1737970238672,-500.0,0.00010958,2]
[350578067,1737970238681,-500.0,0.00010958,2]
[350578068,1737970238690,-500.0,0.00010958,2]
[350578069,1737970238698,-500.0,0.00010958,2]
[350578070,1737970238707,-500.0,0.00010958,2]
[350578071,1737970238716,-500.0,0.00010958,2]
[350578072,1737970238725,-500.0,0.00010958,2]
[350578073,1737970238734,-536.71396788,0.00010958,2]
[350578074,1737970238743,-500.0,0.00010958,2]
[350578075,1737970238752,-500.0,0.00010958,2]
[350578076,1737970238761,-554.19538999,0.00010958,2]
[350578077,1737970238770,-500.0,0.00010958,2]
[350578078,1737970238779,-500.0,0.00010958,2]
[350578079,1737970238790,-500.0,0.00010958,2]
[350578080,1737970238799,-500.0,0.00010958,2]
[350578081,1737970238808,-500.0,0.00010958,2]
[350578082,1737970238817,-500.0,0.00010958,2]
[350578083,1737970238827,-500.0,0.00010958,2]
[350578084,1737970238838,-500.0,0.00010958,2]
[350578085,1737970238848,-500.0,0.00010958,2]
[350578086,1737970238857,-500.0,0.00010958,2]
[350578087,1737970238867,-251.59,0.00010958,2]
[350578088,1737970238876,-252.9,0.00010958,2]
[350578089,1737970238885,-255.0,0.00010999,2]
[350578090,1737970238895,-2000.0,0.00011,2]
[350578091,1737970238904,-1000.0,0.00011,2]
[350578092,1737970238913,-1000.0,0.00011,2]
[350578093,1737970238923,-1000.0,0.00011,2]
[350578094,1737970238932,-248.97,0.00011096,2]
[350578095,1737970238942,-500.0,0.00011096,2]
[350578096,1737970238951,-500.0,0.00011096,2]
[350578097,1737970238960,-500.0,0.00011096,2]
[350578098,1737970238969,-487.35407526,0.00011096,2]
[350578099,1737970238979,-500.0,0.00011096,2]
[350578100,1737970238988,-500.0,0.00011096,2]
[350578101,1737970238997,-500.0,0.00011096,2]
[350578102,1737970239006,-500.0,0.00011096,2]
[350578103,1737970239016,-500.0,0.00011096,2]
[350578104,1737970239025,-500.0,0.00011096,2]
[350578105,1737970239035,-500.0,0.00011096,2]
[350578106,1737970239045,-500.0,0.00011096,2]
[350578107,1737970239054,-177.05076606,0.00011096,2]
[350578108,1737970239063,-457.93741731,0.00011096,2]
[350578109,1737970239073,-500.0,0.00011096,2]
[350578110,1737970239082,-4801.63038315,0.00011099,2]
[350578111,1737970239093,-4801.63038308,0.00011099,2]
[350578112,1737970239102,-4801.63038308,0.00011099,2]
[350578113,1737970239112,-4801.63038308,0.00011099,2]
[350578114,1737970239121,-4801.63038308,0.00011099,2]
[350578115,1737970239131,-4801.63038308,0.00011099,2]
[350578117,1737970239141,-300.0,0.000112,4]
[350578118,1737970239150,-4801.63038308,0.00011233,2]
[350578120,1737970239159,-1000.0,0.00011295,2]
[350578121,1737970239168,-600.0,0.000113,4]
[350578122,1737970239177,-900.0,0.000114,4]
[350578123,1737970239186,-4801.63038308,0.00011456,2]
[350578124,1737970239196,-150.07,0.00011458,2]
[350578125,1737970239206,-417.94,0.00011459,2]
[350578126,1737970239216,-1200.0,0.000115,4]
[350578127,1737970239228,-1500.0,0.00011522,2]
[350578128,1737970239237,-1500.0,0.000116,4]
[350578129,1737970239246,-23304.99301754,0.000116,2]
[350578130,1737970239255,-404.04446499,0.00011643,2]
[350578131,1737970239265,-500.0,0.00011643,2]
[350578132,1737970239275,-500.0,0.00011643,2]
[350578133,1737970239283,-500.0,0.00011643,2]
[350578134,1737970239293,-500.0,0.00011643,2]
[350578136,1737970239303,-500.0,0.00011643,2]
[350578137,1737970239312,-373.50339033,0.00011643,2]
[350578138,1737970239322,-500.0,0.00011643,2]
[350578139,1737970239331,-500.0,0.00011643,2]
[350578140,1737970239340,-368.71104131,0.00011643,2]
[350578141,1737970239351,-500.0,0.00011643,2]
[350578142,1737970239360,-500.0,0.00011644,2]
[350578143,1737970239369,-586.50303657,0.00011667,2]
[350578144,1737970239379,-4801.63038308,0.00011678,2]
[350578145,1737970239388,-586.50303654,0.00011693,2]
[350578146,1737970239397,-1000.0,0.000117,2]
[350578147,1737970239407,-300.0,0.000117,4]
[350578149,1737970239416,-586.50303654,0.00011719,2]
[350578151,1737970239426,-586.50303654,0.00011745,2]
[350578152,1737970239435,-430.93306688,0.00011745,2]
[350578153,1737970239444,-500.0,0.00011759,2]
[350578154,1737970239453,-500.0,0.00011759,2]
[350578155,1737970239463,-500.0,0.00011759,2]
[350578156,1737970239473,-500.0,0.00011759,2]
[350578157,1737970239482,-500.0,0.00011759,2]
[350578158,1737970239492,-500.0,0.00011759,2]
[350578159,1737970239501,-500.0,0.00011759,2]
[350578160,1737970239511,-500.0,0.00011759,2]
[350578161,1737970239520,-500.0,0.00011759,2]
[350578162,1737970239530,-500.0,0.00011759,2]
[350578163,1737970239539,-500.0,0.00011759,2]
[350578164,1737970239548,-500.0,0.00011759,2]
[350578165,1737970239557,-500.0,0.00011759,2]
[350578166,1737970239567,-542.59,0.00011759,2]
[350578167,1737970239576,-500.0,0.00011759,2]
[350578168,1737970239585,-500.0,0.00011759,2]
[350578169,1737970239597,-500.0,0.00011759,2]
[350578170,1737970239606,-908.39,0.00011759,2]
[350578171,1737970239615,-500.0,0.00011759,2]
[350578172,1737970239624,-500.0,0.00011759,2]
[350578173,1737970239634,-500.0,0.00011759,2]
[350578174,1737970239644,-500.0,0.00011759,2]
[350578175,1737970239653,-500.0,0.00011759,2]
[350578176,1737970239663,-500.0,0.00011759,2]
[350578177,1737970239672,-836.21,0.00011759,2]
[350578178,1737970239683,-500.0,0.00011759,2]
[350578179,1737970239692,-500.0,0.00011759,2]
[350578180,1737970239702,-500.0,0.00011759,2]
[350578181,1737970239711,-500.0,0.00011759,2]
[350578182,1737970239720,-500.0,0.00011759,2]
[350578183,1737970239730,-500.0,0.00011759,2]
[350578184,1737970239740,-620.13,0.00011759,2]
[350578185,1737970239750,-246.289265,0.00011759,2]
[350578186,1737970239939,-1245.92,0.00011759,2]
[350578187,1737970239949,-202.96326405,0.00011759,2]
[350578188,1737970239959,-287.74139614,0.00011759,2]
[350578189,1737970239968,-500.0,0.00011759,2]
[350578190,1737970239977,-2076.59,0.00011759,2]
[350578191,1737970239987,-500.0,0.00011759,2]
[350578192,1737970239996,-694.15,0.00011759,2]
[350578193,1737970240006,-500.0,0.00011759,2]
[350578194,1737970240015,-500.0,0.00011759,2]
[350578195,1737970240024,-500.0,0.00011759,2]
[350578196,1737970240033,-212398.65837279,0.0001176,2]
[350578197,1737970240042,-638.0,0.00011767,2]
[350578198,1737970240052,-1040.297,0.00011767,2]
[350578199,1737970240061,-586.50303654,0.00011771,2]
[350578200,1737970240070,-586.50303654,0.00011796,2]
[350578201,1737970240080,-300.0,0.000118,4]
[350578202,1737970240089,-779.88265299,0.0001182,2]
[350578203,1737970240100,-586.50303654,0.00011822,2]
[350578204,1737970240109,-3000.0,0.0001184,2]
[350578205,1737970240118,-586.50303654,0.00011848,2]
[350578206,1737970240127,-586.50303654,0.00011874,2]
[350578208,1737970240137,-500.0,0.00011876,2]
[350578210,1737970240146,-500.0,0.00011876,2]
[350578212,1737970240155,-500.0,0.00011876,2]
[350578214,1737970240165,-500.0,0.00011876,2]
[350578216,1737970240174,-500.0,0.00011876,2]
[350578218,1737970240183,-500.0,0.00011876,2]
[350578220,1737970240192,-500.0,0.00011876,2]
[350578222,1737970240201,-537.06,0.00011876,2]
[350578224,1737970240211,-1560.870101,0.00011876,2]
[350578225,1737970240220,-500.0,0.00011876,2]
[350578226,1737970240233,-500.0,0.00011876,2]
[350578227,1737970240243,-500.0,0.00011876,2]
[350578228,1737970240251,-500.0,0.00011876,2]
[350578229,1737970240260,-500.0,0.00011876,2]
[350578230,1737970240270,-500.0,0.00011876,2]
[350578231,1737970240280,-500.0,0.00011876,2]
[350578232,1737970240289,-500.0,0.00011876,2]
[350578233,1737970240298,-500.0,0.00011876,2]
[350578234,1737970240308,-500.0,0.00011876,2]
[350578235,1737970240318,-500.0,0.00011876,2]
[350578236,1737970240327,-500.0,0.00011876,2]
[350578237,1737970240336,-500.0,0.00011876,2]
[350578238,1737970240347,-500.0,0.00011876,2]
[350578239,1737970240356,-500.0,0.00011876,2]
[350578240,1737970240366,-500.0,0.00011876,2]
[350578241,1737970240375,-500.0,0.00011876,2]
[350578242,1737970240385,-500.0,0.00011876,2]
[350578243,1737970240394,-500.0,0.00011876,2]
[350578244,1737970240403,-500.0,0.00011876,2]
[350578245,1737970240412,-500.0,0.00011876,2]
[350578246,1737970240421,-500.0,0.00011876,2]
[350578247,1737970240431,-531.51,0.00011876,2]
[350578248,1737970240440,-903.682956,0.00011876,2]
[350578249,1737970240449,-500.0,0.00011876,2]
[350578250,1737970240458,-542.59,0.00011876,2]
[350578251,1737970240468,-500.0,0.00011876,2]
[350578252,1737970240477,-500.0,0.00011876,2]
[350578253,1737970240487,-500.0,0.00011876,2]
[350578254,1737970240496,-6517.88,0.00011876,2]
[350578255,1737970240505,-467.90464239,0.00011876,2]
[350578256,1737970240515,-607.22,0.00011876,2]
[350578257,1737970240524,-908.39,0.00011876,2]
[350578258,1737970240533,-500.0,0.00011876,2]
[350578259,1737970240543,-2709.61,0.00011876,2]
[350578260,1737970240552,-500.0,0.00011876,2]
[350578261,1737970240562,-500.0,0.00011876,2]
[350578262,1737970240570,-4046.17,0.00011876,2]
[350578263,1737970240580,-500.0,0.00011876,2]
[350578264,1737970240589,-500.0,0.00011876,2]
[350578265,1737970240602,-836.21,0.00011876,2]
[350578266,1737970240611,-500.0,0.00011876,2]
[350578267,1737970240620,-2316.88,0.00011876,2]
[350578268,1737970240630,-150.613826,0.00011876,2]
[350578269,1737970240639,-500.0,0.00011876,2]
[350578270,1737970240649,-4933.93,0.00011876,2]
[350578271,1737970240658,-2067.16,0.00011876,2]
[350578272,1737970240667,-500.0,0.00011876,2]
[350578273,1737970240677,-500.0,0.00011876,2]
[350578274,1737970240686,-500.0,0.00011876,2]
[350578275,1737970240695,-500.0,0.00011876,2]
[350578276,1737970240705,-500.0,0.00011876,2]
[350578277,1737970240714,-620.13,0.00011876,2]
[350578278,1737970240724,-246.289265,0.00011876,2]
[350578279,1737970240733,-611.37,0.00011876,2]
[350578280,1737970240743,-1245.92,0.00011876,2]
[350578281,1737970240752,-681.65,0.00011876,2]
[350578282,1737970240762,-500.0,0.00011876,2]
[350578283,1737970240772,-2076.59,0.00011876,2]
[350578284,1737970240781,-500.0,0.00011876,2]
[350578285,1737970240791,-500.0,0.00011876,2]
[350578286,1737970240800,-500.0,0.00011876,2]
[350578287,1737970240809,-500.0,0.00011876,2]
[350578288,1737970240818,-694.15,0.00011876,2]
[350578289,1737970240828,-500.0,0.00011876,2]
[350578290,1737970240837,-500.0,0.00011876,2]
[350578291,1737970240848,-500.0,0.00011877,2]
[350578292,1737970240857,-517.31348562,0.00011877,2]
[350578293,1737970240867,-500.0,0.00011877,2]
[350578294,1737970240876,-500.0,0.00011877,2]
[350578295,1737970240885,-500.0,0.00011877,2]
[350578296,1737970240894,-500.0,0.00011877,2]
[350578297,1737970240904,-500.0,0.00011877,2]
[350578298,1737970240913,-537.39206811,0.00011877,2]
[350578299,1737970240923,-500.0,0.00011877,2]
[350578300,1737970240932,-165.13957538,0.00011877,2]
[350578301,1737970240942,-500.0,0.00011877,2]
[350578302,1737970240951,-500.0,0.00011877,2]
[350578303,1737970240960,-504.49322329,0.00011877,2]
[350578304,1737970240969,-504.4787127,0.00011877,2]
[350578305,1737970240979,-504.70803446,0.00011877,2]
[350578306,1737970240988,-500.0,0.00011877,2]
[350578307,1737970240997,-500.0,0.00011877,2]
[350578308,1737970241006,-500.0,0.00011877,2]
[350578309,1737970241015,-596.2776043,0.00011877,2]
[350578310,1737970241024,-500.0,0.00011877,2]
[350578311,1737970241034,-500.0,0.00011877,2]
[350578312,1737970241043,-497.39118868,0.00011877,2]
[350578313,1737970241053,-500.0,0.00011877,2]
[350578314,1737970241062,-505.15344946,0.00011877,2]
[350578315,1737970241071,-501.77406093,0.00011877,2]
[350578316,1737970241081,-500.0,0.00011877,2]
[350578317,1737970241090,-500.0,0.00011877,2]
[350578318,1737970241102,-500.0,0.00011877,2]
[350578319,1737970241111,-500.0,0.00011877,2]
[350578320,1737970241121,-500.0,0.00011877,2]
[350578321,1737970241130,-500.0,0.00011877,2]
[350578322,1737970241140,-500.0,0.00011877,2]
[350578323,1737970241149,-500.0,0.00011877,2]
[350578324,1737970241158,-500.0,0.00011877,2]
[350578325,1737970241167,-545.56,0.00011877,2]
[350578326,1737970241177,-500.0,0.00011877,2]
[350578327,1737970241186,-500.0,0.00011877,2]
[350578328,1737970241195,-500.0,0.00011877,2]
[350578329,1737970241204,-500.0,0.00011877,2]
[350578330,1737970241214,-560.29,0.00011877,2]
[350578331,1737970241225,-500.0,0.00011877,2]
[350578332,1737970241235,-544.76,0.00011877,2]
[350578333,1737970241244,-500.0,0.00011877,2]
[350578334,1737970241253,-554.34,0.00011877,2]
[350578335,1737970241264,-500.0,0.00011877,2]
[350578336,1737970241273,-500.0,0.00011877,2]
[350578337,1737970241283,-500.0,0.00011877,2]
[350578338,1737970241292,-500.0,0.00011877,2]
[350578339,1737970241302,-500.0,0.00011877,2]
[350578340,1737970241312,-509.05979799,0.00011877,2]
[350578341,1737970241321,-500.0,0.00011877,2]
[350578342,1737970241330,-500.0,0.00011877,2]
[350578343,1737970241339,-500.0,0.00011877,2]
[350578344,1737970241352,-523.87,0.00011877,2]
[350578345,1737970241361,-500.0,0.00011877,2]
[350578346,1737970241370,-500.0,0.00011877,2]
[350578347,1737970241379,-500.0,0.00011877,2]
[350578348,1737970241388,-500.0,0.00011877,2]
[350578349,1737970241397,-500.0,0.00011877,2]
[350578350,1737970241406,-500.0,0.00011877,2]
[350578351,1737970241415,-236.87670398,0.00011877,2]
[350578352,1737970241425,-500.0,0.00011877,2]
[350578353,1737970241434,-500.0,0.00011877,2]
[350578354,1737970241443,-500.0,0.00011877,2]
[350578355,1737970241453,-500.0,0.00011877,2]
[350578356,1737970241462,-500.0,0.00011877,2]
[350578357,1737970241472,-500.0,0.00011877,2]
[350578358,1737970241481,-500.0,0.00011877,2]
[350578359,1737970241490,-500.0,0.00011877,2]
[350578360,1737970241500,-500.0,0.00011877,2]
[350578361,1737970241511,-500.0,0.00011877,2]
[350578362,1737970241520,-500.0,0.00011877,2]
[350578363,1737970241530,-173.6918832,0.00011877,2]
[350578364,1737970241539,-500.0,0.00011877,2]
[350578365,1737970241550,-398.04263118,0.00011877,2]
[350578366,1737970241559,-500.0,0.00011877,2]
[350578367,1737970241568,-510.95,0.00011877,2]
[350578368,1737970241577,-502.29,0.00011877,2]
[350578369,1737970241587,-500.0,0.00011877,2]
[350578370,1737970241597,-500.0,0.00011877,2]
[350578371,1737970241607,-500.0,0.00011877,2]
[350578372,1737970241617,-500.0,0.00011877,2]
[350578373,1737970241627,-500.0,0.00011877,2]
[350578374,1737970241636,-500.0,0.00011877,2]
[350578375,1737970241646,-500.0,0.00011877,2]
[350578376,1737970241655,-500.0,0.00011877,2]
[350578377,1737970241665,-500.0,0.00011877,2]
[350578378,1737970241674,-500.0,0.00011877,2]
[350578379,1737970241683,-500.0,0.00011877,2]
[350578380,1737970241692,-500.0,0.00011877,2]
[350578381,1737970241702,-500.0,0.00011877,2]
[350578382,1737970241711,-500.0,0.00011877,2]
[350578383,1737970241720,-500.0,0.00011877,2]
[350578384,1737970241729,-500.0,0.00011877,2]
[350578385,1737970241738,-517.17528307,0.00011877,2]
[350578386,1737970241747,-500.0,0.00011877,2]
[350578387,1737970241756,-500.0,0.00011877,2]
[350578388,1737970241766,-500.0,0.00011877,2]
[350578389,1737970241775,-500.0,0.00011877,2]
[350578390,1737970241784,-500.0,0.00011877,2]
[350578391,1737970241794,-500.0,0.00011877,2]
[350578392,1737970241804,-412.56397371,0.00011877,2]
[350578393,1737970241813,-500.0,0.00011877,2]
[350578394,1737970241822,-500.0,0.00011877,2]
[350578395,1737970241831,-500.0,0.00011877,2]
[350578396,1737970241841,-500.0,0.00011877,2]
[350578397,1737970241854,-500.0,0.00011877,2]
[350578398,1737970241863,-500.0,0.00011877,2]
[350578399,1737970241872,-500.0,0.00011877,2]
[350578400,1737970241881,-500.0,0.00011877,2]
[350578401,1737970241891,-500.0,0.00011877,2]
[350578402,1737970241900,-3000.0,0.00011878,2]
[350578403,1737970241909,-500.0,0.00011879,2]
[350578404,1737970241918,-500.0,0.00011879,2]
[350578405,1737970241927,-500.0,0.00011879,2]
[350578406,1737970241936,-500.0,0.00011879,2]
[350578407,1737970241945,-500.0,0.00011879,2]
[350578408,1737970241954,-500.0,0.00011879,2]
[350578409,1737970241964,-500.0,0.00011879,2]
[350578410,1737970241973,-500.0,0.00011879,2]
[350578411,1737970241982,-500.0,0.00011879,2]
[350578412,1737970241991,-500.0,0.00011879,2]
[350578413,1737970242000,-500.0,0.00011879,2]
[350578414,1737970242009,-500.0,0.00011879,2]
[350578415,1737970242018,-500.0,0.00011879,2]
[350578416,1737970242027,-520.34865349,0.00011879,2]
[350578417,1737970242036,-155.42148584,0.00011879,2]
[350578418,1737970242045,-500.0,0.00011879,2]
[350578419,1737970242055,-500.0,0.00011879,2]
[350578420,1737970242064,-500.0,0.00011879,2]
[350578421,1737970242074,-500.0,0.00011879,2]
[350578422,1737970242083,-500.0,0.00011879,2]
[350578423,1737970242093,-500.0,0.00011879,2]
[350578424,1737970242106,-500.0,0.00011879,2]
[350578425,1737970242116,-500.0,0.00011879,2]
[350578426,1737970242125,-500.0,0.00011879,2]
[350578427,1737970242135,-500.0,0.00011879,2]
[350578428,1737970242144,-500.0,0.00011879,2]
[350578429,1737970242154,-500.0,0.00011879,2]
[350578431,1737970242163,-500.0,0.00011879,2]
[350578433,1737970242173,-500.0,0.00011879,2]
[350578434,1737970242182,-1567.52,0.00011879,2]
[350578435,1737970242191,-500.0,0.00011879,2]
[350578436,1737970242201,-500.0,0.00011879,2]
[350578437,1737970242211,-500.0,0.00011879,2]
[350578439,1737970242223,-157.39853122,0.00011889,2]
[350578440,1737970242233,-500.0,0.00011899,2]
[350578441,1737970242242,-300.0,0.000119,4]
[350578442,1737970242251,-586.50303654,0.000119,2]
[350578443,1737970242262,-541.6752954,0.000119,2]
[350578445,1737970242271,-1168.87979706,0.000119,2]
[350578447,1737970242280,-6512.52224666,0.000119,2]
[350578449,1737970242289,-4801.63038308,0.000119,2]
[350578450,1737970242299,-11617.34068435,0.00011912,2]
[350578451,1737970242308,-500.0,0.00011914,2]